bitfinex/quotes_SOLUSD_20220105
["timestamp","ask_amount","ask_price","bid_price","bid_amount"]
[1641346830033,0.5,167.92,167.79,24.9889]
[1641346830232,3.03251351,167.91,167.8,8.52]
[1641346830432,3.03251351,167.91,167.8,10.2879]
[1641346830631,3.03251351,167.91,167.8,10.5479]
[1641346830832,3.03251351,167.91,167.81,23.8795]
[1641346831032,3.03251351,167.91,167.82,29.23494887]
[1641346831535,3.03251351,167.91,167.82,29.99494887]
[1641346832437,3.03251351,167.91,167.82,0.76]
[1641346832838,3.53251351,167.91,167.81,33.1595]
[1641346833037,3.53251351,167.91,167.82,1.2421]
[1641346833440,3.79251351,167.91,167.82,1.5021]
[1641346834642,3.79251351,167.91,167.82,0.26]
[1641346835143,3.79251351,167.91,167.81,24.6395]
[1641346835642,3.53251351,167.91,167.81,24.6395]
[1641346836046,3.53251351,167.91,167.82,1.2404]
[1641346836469,3.53251351,167.91,167.82,1.5004]
[1641346836668,3.79251351,167.91,167.82,1.5004]
[1641346836869,3.79251351,167.91,167.82,2.94890786]
[1641346837067,3.79251351,167.91,167.82,1.5004]
[1641346837769,1.3321,167.9,167.82,1.5004]
[1641346838070,2.0921,167.9,167.82,0.26]
[1641346838570,2.0921,167.9,167.81,24.6395]
[1641346838771,1.8321,167.9,167.83,1.44850786]
[1641346839170,1.8321,167.9,167.83,0.26]
[1641346839370,3.03251351,167.91,167.83,0.26]
[1641346839571,3.53251351,167.91,167.83,0.26]
[1641346839771,3.53251351,167.91,167.84,1.44850786]
[1641346840070,3.53251351,167.91,167.84,1.70850786]
[1641346840471,3.53251351,167.91,167.84,0.26]
[1641346840871,3.53251351,167.91,167.82,2.0251]
[1641346841478,3.79251351,167.91,167.82,2.0251]
[1641346842875,3.29251351,167.91,167.82,2.0251]
[1641346843880,3.29251351,167.91,167.83,1.44850786]
[1641346844082,3.03251351,167.91,167.83,1.70850786]
[1641346844279,3.03251351,167.91,167.83,2.20850786]
[1641346844477,3.03251351,167.91,167.83,0.76]
[1641346845080,3.03251351,167.91,167.82,2.0251]
[1641346845278,3.03251351,167.91,167.82,1.5251]
[1641346845578,3.03251351,167.91,167.82,2.0251]
[1641346845979,3.79251351,167.91,167.82,1.5251]
[1641346846682,3.79251351,167.91,167.82,0.26]
[1641346846880,1.3543,167.9,167.81,24.1395]
[1641346847080,1.6143,167.9,167.81,24.1395]
[1641346847282,2.1143,167.9,167.81,24.1395]
[1641346847482,2.1143,167.9,167.81,24.6395]
[1641346847682,2.1143,167.9,167.81,24.1395]
[1641346848282,2.1143,167.9,167.81,24.6395]
[1641346851588,2.1143,167.9,167.81,26.08800786]
[1641346852087,2.1143,167.9,167.81,24.6395]
[1641346852992,2.1143,167.9,167.81,24.1395]
[1641346855996,2.1143,167.9,167.81,24.6395]
[1641346856194,2.1143,167.9,167.81,24.1395]
[1641346856794,2.1143,167.9,167.81,25.58800786]
[1641346859898,2.1143,167.9,167.81,24.1395]
[1641346860298,2.1143,167.9,167.79,1.3454]
[1641346860501,10.6343,167.9,167.79,26.6779]
[1641346860698,10.6343,167.9,167.79,24.8325]
[1641346861098,24.8121,167.89,167.79,26.28100786]
[1641346861297,2.70736833,167.88,167.79,26.28100786]
[1641346861502,3.20736833,167.88,167.79,24.8325]
[1641346861702,3.46736833,167.88,167.79,25.0925]
[1641346862101,1.3006,167.87,167.79,26.398]
[1641346862499,2.0606,167.87,167.79,27.84650786]
[1641346863703,2.0606,167.87,167.79,26.398]
[1641346863906,2.0606,167.87,167.79,26.898]
[1641346864406,0.5,167.87,167.79,28.34650786]
[1641346864806,3.20736833,167.88,167.79,26.898]
[1641346865503,3.20736833,167.88,167.8,1.44850786]
[1641346865704,0.5,167.88,167.8,1.44850786]
[1641346865903,33.9766,167.92,167.8,2.20850786]
[1641346866105,34.2366,167.92,167.8,2.20850786]
[1641346866304,34.2366,167.92,167.81,1.44850786]
[1641346866505,34.2366,167.92,167.81,3.07530786]
[1641346866806,2.194582,167.91,167.81,3.57530786]
[1641346867007,2.454582,167.91,167.81,3.57530786]
[1641346867207,2.954582,167.91,167.81,3.57530786]
[1641346868008,2.954582,167.91,167.81,2.1268]
[1641346868206,1.3345,167.9,167.81,1.3668]
[1641346868406,1.8345,167.9,167.81,1.3668]
[1641346868609,2.0945,167.9,167.81,1.3668]
[1641346868806,2.0945,167.9,167.79,24.8325]
[1641346869611,1.5945,167.9,167.79,24.8325]
[1641346869813,8.52,167.89,167.79,24.8325]
[1641346870012,22.19985892,167.88,167.79,24.8325]
[1641346870410,22.95985892,167.88,167.79,24.8325]
[1641346870812,1.3177,167.87,167.79,24.8325]
[1641346871010,1.5777,167.87,167.79,25.0925]
[1641346871211,2.0777,167.87,167.79,25.0925]
[1641346873813,1.8177,167.87,167.79,26.54100786]
[1641346874115,0.5,167.87,167.79,27.04100786]
[1641346874512,3.03276911,167.88,167.79,27.04100786]
[1641346874812,4.30766911,167.88,167.79,27.04100786]
[1641346875014,5.06766911,167.88,167.79,27.04100786]
[1641346875215,5.06766911,167.88,167.8,1.2538]
[1641346875614,5.06766911,167.88,167.8,1.5138]
[1641346876215,5.06766911,167.88,167.8,2.0138]
[1641346876615,5.06766911,167.88,167.8,2.96230786]
[1641346876816,5.06766911,167.88,167.8,3.46230786]
[1641346880432,5.06766911,167.88,167.8,2.96230786]
[1641346880931,5.06766911,167.88,167.8,3.46230786]
[1641346881333,5.06766911,167.88,167.8,2.96230786]
[1641346881738,5.06766911,167.88,167.8,3.46230786]
[1641346884246,5.06766911,167.88,167.8,2.0138]
[1641346884446,5.06766911,167.88,167.81,1.44850786]
[1641346884848,5.06766911,167.88,167.81,2.20850786]
[1641346887871,5.06766911,167.88,167.81,1.70850786]
[1641346888570,5.06766911,167.88,167.81,2.20850786]
[1641346889472,5.06766911,167.88,167.81,1.70850786]
[1641346889672,5.06766911,167.88,167.81,0.26]
[1641346889874,5.06766911,167.88,167.81,1.70850786]
[1641346890482,5.06766911,167.88,167.81,0.76]
[1641346890682,5.06766911,167.88,167.81,0.26]
[1641346890882,5.06766911,167.88,167.81,1.44850786]
[1641346891081,5.06766911,167.88,167.81,0.26]
[1641346891981,5.06766911,167.88,167.8,2.0138]
[1641346892381,5.06766911,167.88,167.81,1.44850786]
[1641346892580,5.06766911,167.88,167.81,1.70850786]
[1641346893683,5.06766911,167.88,167.82,1.44850786]
[1641346893883,5.06766911,167.88,167.81,0.26]
[1641346894083,5.06766911,167.88,167.8,2.0138]
[1641346894885,5.06766911,167.88,167.81,1.44850786]
[1641346895085,5.06766911,167.88,167.81,0.26]
[1641346895385,8.52,167.91,167.81,1.70850786]
[1641346895584,77.9806,167.99,167.81,10.22850786]
[1641346895585,24.8223,167.93,167.81,10.22850786]
[1641346895785,1.2912,167.95,167.82,24.6738]
[1641346895988,1.2912,167.95,167.82,35.2938]
[1641346896185,1.2912,167.95,167.83,1.44850786]
[1641346896386,3.03487628,167.94,167.83,28.85942296]
[1641346896610,3.03487628,167.94,167.84,22.5821]
[1641346896811,3.29487628,167.94,167.84,24.03060786]
[1641346897010,3.29487628,167.94,167.84,24.79060786]
[1641346897210,28.28697628,167.94,167.85,1.3702]
[1641346897410,28.78697628,167.94,167.85,1.3702]
[1641346897612,28.78697628,167.94,167.85,1.6302]
[1641346897813,1.2829,167.93,167.85,1.6302]
[1641346898011,1.5429,167.93,167.85,1.6302]
[1641346898211,2.0429,167.93,167.85,1.6302]
[1641346898616,2.0429,167.93,167.85,3.07870786]
[1641346899012,2.0429,167.93,167.85,3.57870786]
[1641346899715,2.0429,167.93,167.85,2.1302]
[1641346900114,1.7829,167.93,167.85,3.57870786]
[1641346900414,1.7829,167.93,167.85,2.20850786]
[1641346900818,1.7829,167.93,167.85,3.56660786]
[1641346902918,2.0429,167.93,167.85,3.56660786]
[1641346903318,2.0429,167.93,167.85,3.06660786]
[1641346903518,2.0429,167.93,167.85,1.70850786]
[1641346903720,2.0429,167.93,167.84,22.5821]
[1641346904519,2.0429,167.93,167.84,24.03060786]
[1641346904718,2.0429,167.93,167.84,22.5821]
[1641346905120,2.0429,167.93,167.84,22.8421]
[1641346913030,1.7829,167.93,167.84,22.8421]
[1641346913231,1.7829,167.93,167.84,23.3421]
[1641346914131,2.0429,167.93,167.84,23.3421]
[1641346916732,1.7829,167.93,167.84,23.3421]
[1641346917534,1.7829,167.93,167.85,1.3106]
[1641346917935,1.7829,167.93,167.85,2.0706]
[1641346918236,2.0429,167.93,167.85,2.0706]
[1641346923242,1.7829,167.93,167.85,2.0706]
[1641346925645,2.0429,167.93,167.85,2.0706]
[1641346930275,2.0429,167.93,167.85,0.76]
[1641346930548,2.0429,167.93,167.84,22.5821]
[1641346930749,2.0429,167.93,167.84,23.0821]
[1641346931653,10.5629,167.93,167.84,22.5821]
[1641346932551,10.5629,167.93,167.83,1.3656]
[1641346933052,10.5629,167.93,167.83,1.6256]
[1641346933352,23.7907,167.92,167.83,1.6256]
[1641346933554,24.0507,167.92,167.83,1.6256]
[1641346933752,24.5507,167.92,167.83,1.6256]
[1641346933952,24.5507,167.92,167.83,2.1256]
[1641346934453,1.3248,167.91,167.83,26.1358]
[1641346934852,2.0848,167.91,167.83,26.1358]
[1641346941255,2.0848,167.91,167.83,25.6358]
[1641346943662,2.0848,167.91,167.83,25.3758]
[1641346944966,2.0848,167.91,167.83,25.6358]
[1641346951902,2.0848,167.91,167.83,25.3758]
[1641346958741,2.0848,167.91,167.83,24.0102]
[1641346958940,2.0848,167.91,167.8,1.3343]
[1641346958941,10.6048,167.91,167.8,1.3343]
[1641346959339,10.6048,167.91,167.8,1.5943]
[1641346959742,22.9332,167.9,167.8,1.5943]
[1641346959944,23.4332,167.9,167.8,1.5943]
[1641346960141,23.6932,167.9,167.8,1.5943]
[1641346961740,2.52108797,167.88,167.8,1.5943]
[1641346961941,3.02108797,167.88,167.8,1.5943]
[1641346962142,3.28108797,167.88,167.8,1.5943]
[1641346963845,3.28108797,167.88,167.8,0.26]
[1641346964045,3.28108797,167.88,167.8,0.5]
[1641346964245,3.28108797,167.88,167.8,1.8489]
[1641346964648,3.28108797,167.88,167.8,2.1089]
[1641346965053,0.76,167.88,167.8,2.1089]
[1641346965352,0.26,167.88,167.8,2.1089]
[1641346965551,1.6325,167.89,167.8,2.1089]
[1641346966150,2.40158015,167.88,167.8,2.1089]
[1641346966655,2.66158015,167.88,167.8,2.1089]
[1641346966956,0.26,167.88,167.8,2.1089]
[1641346967559,2.1325,167.89,167.8,2.1089]
[1641346967957,4.69822319,167.89,167.8,2.1089]
[1641346971064,4.43822319,167.89,167.8,2.1089]
[1641346971462,4.43822319,167.89,167.8,3.55740786]
[1641346972469,4.43822319,167.89,167.8,2.1089]
[1641346972470,4.69822319,167.89,167.8,2.1089]
[1641346973868,4.69822319,167.89,167.81,1.44850786]
[1641346974067,4.69822319,167.89,167.81,1.70850786]
[1641346974268,2.1325,167.89,167.81,0.76]
[1641346974469,8.52,167.91,167.81,2.20850786]
[1641346974670,9.7652,167.94,167.81,9.31350786]
[1641346974871,9.7652,167.94,167.82,1.2741]
[1641346975070,1.2452,167.94,167.83,120.20741065]
[1641346975292,4.06865966,167.94,167.84,24.7152]
[1641346975496,4.06865966,167.94,167.85,26.99207179]
[1641346975695,1.2452,167.94,167.85,26.99207179]
[1641346975894,1.2452,167.94,167.86,23.8562]
[1641346976098,1.7452,167.94,167.86,24.1162]
[1641346976294,1.7452,167.94,167.86,24.6162]
[1641346976495,22.9182,167.97,167.86,30.6602]
[1641346976693,22.9182,167.97,167.86,32.10870786]
[1641346977895,4.36859942,167.98,167.86,32.10870786]
[1641346978696,2.99719942,167.98,167.86,32.10870786]
[1641346979899,9.8972,168.01,167.86,40.62870786]
[1641346980401,32.9936,168.04,167.86,40.62870786]
[1641346980602,2.5233,168.04,167.86,40.62870786]
[1641346980801,3.0233,168.04,167.86,50.35022744]
[1641346981200,2.21242266,168.03,167.86,51.63812744]
[1641346981400,2.21242266,168.03,167.87,8.9308]
[1641346981602,2.21242266,168.03,167.88,8.52]
[1641346981800,1.2667,168.04,167.89,23.2135]
[1641346981999,8.52,168.07,167.9,8.52]
[1641346982201,8.52,168.07,167.91,24.9452]
[1641346982399,8.52,168.07,167.92,26.53912297]
[1641346982600,8.52,168.07,167.93,23.9731]
[1641346982799,2.48013405,168.06,167.94,1.2671]
[1641346983001,2.48013405,168.06,167.94,1.5271]
[1641346983205,26.12003405,168.06,167.94,2.0271]
[1641346983403,1.3128,168.05,167.94,2.0271]
[1641346983805,1.8128,168.05,167.94,1.5271]
[1641346984605,2.0728,168.05,167.94,1.5271]
[1641346985506,2.0728,168.05,167.94,2.0271]
[1641346991019,1.5728,168.05,167.94,2.0271]
[1641346991221,0.26,168.05,167.94,2.0271]
[1641346991622,27.71303405,168.06,167.94,2.0271]
[1641346995849,27.71303405,168.06,167.94,1.7671]
[1641346996048,8.52,168.05,167.94,1.2671]
[1641346996448,9.28,168.05,167.94,1.2671]
[1641346996647,22.8877,168.04,167.94,1.2671]
[1641346996848,31.9077,168.04,167.94,1.2671]
[1641346997049,32.1677,168.04,167.94,1.2671]
[1641346997350,1.3138,168.03,167.94,1.5271]
[1641346997549,1.5738,168.03,167.94,1.5271]
[1641346997750,2.0738,168.03,167.94,1.5271]
[1641346999151,2.0738,168.03,167.94,2.0271]
[1641346999751,2.0738,168.03,167.94,1.5271]
[1641347001455,1.8138,168.03,167.94,2.0271]
[1641347002553,2.0738,168.03,167.94,2.0271]
[1641347003759,2.0738,168.03,167.94,3.47560786]
[1641347005758,1.8138,168.03,167.94,3.47560786]
[1641347005963,0.5,168.03,167.94,3.47560786]
[1641347006260,0.5,168.03,167.95,22.7367]
[1641347006458,2.48013405,168.06,167.95,22.7367]
[1641347006459,2.98013405,168.06,167.95,23.2367]
[1641347006660,2.98013405,168.06,167.95,24.94520786]
[1641347007461,4.22043405,168.06,167.96,1.2914]
[1641347007862,4.22043405,168.06,167.96,1.5514]
[1641347008060,4.48043405,168.06,167.96,1.5514]
[1641347008663,29.47293405,168.06,167.96,1.5514]
[1641347010962,29.21293405,168.06,167.96,1.5514]
[1641347011365,3.72043405,168.06,167.96,2.0514]
[1641347011866,3.72043405,168.06,167.96,1.5514]
[1641347012664,4.22043405,168.06,167.96,1.5514]
[1641347012862,4.22043405,168.06,167.96,2.0514]
[1641347013063,4.48043405,168.06,167.96,2.0514]
[1641347013264,3.98043405,168.06,167.96,2.0514]
[1641347013463,4.48043405,168.06,167.96,2.0514]
[1641347015865,4.48043405,168.06,167.96,1.5514]
[1641347019869,4.48043405,168.06,167.96,2.0514]
[1641347022973,4.22043405,168.06,167.96,2.0514]
[1641347024182,4.22043405,168.06,167.96,1.2914]
[1641347024374,4.22043405,168.06,167.96,1.7914]
[1641347025576,4.22043405,168.06,167.96,2.0514]
[1641347025776,3.72043405,168.06,167.96,2.0514]
[1641347031313,3.72043405,168.06,167.96,3.49990786]
[1641347031814,3.72043405,168.06,167.97,24.3907]
[1641347032012,3.72043405,168.06,167.97,24.6507]
[1641347032212,3.72043405,168.06,167.97,25.1507]
[1641347033215,3.72043405,168.06,167.98,1.3705]
[1641347033414,4.22043405,168.06,167.98,1.8705]
[1641347033614,4.22043405,168.06,167.98,2.1305]
[1641347034713,4.22043405,168.06,167.99,26.37713653]
[1641347035116,4.22043405,168.06,167.99,26.63713653]
[1641347037421,4.22043405,168.06,167.99,0.26]
[1641347037620,4.22043405,168.06,167.98,2.1305]
[1641347038722,4.22043405,168.06,167.98,27.36972066]
[1641347041226,4.22043405,168.06,167.99,1.44850786]
[1641347041528,4.22043405,168.06,167.99,0.76]
[1641347042426,4.22043405,168.06,167.98,27.36972066]
[1641347043628,4.22043405,168.06,167.99,1.44850786]
[1641347044038,4.22043405,168.06,167.99,24.75710786]
[1641347044931,4.22043405,168.06,167.99,23.3086]
[1641347045532,4.22043405,168.06,168.0,1.44850786]
[1641347045932,4.22043405,168.06,168.0,1.70850786]
[1641347046133,1.7403,168.06,168.0,1.70850786]
[1641347046734,1.7403,168.06,168.0,0.26]
[1641347047137,1.7403,168.06,167.99,23.3086]
[1641347047535,4.02483532,168.06,167.99,23.3086]
[1641347048938,4.02483532,168.06,167.99,23.8086]
[1641347049335,4.02483532,168.06,167.99,23.3086]
[1641347049534,4.02483532,168.06,167.99,23.8086]
[1641347050634,4.02483532,168.06,167.99,23.3086]
[1641347054336,1.2403,168.06,167.99,30.6946]
[1641347054538,35.98578352,168.1,168.0,1.44850786]
[1641347054740,27.46578352,168.1,168.0,1.44850786]
[1641347054939,27.46578352,168.1,168.0,2.20850786]
[1641347055338,1.67978352,168.1,168.01,2.74790786]
[1641347055539,23.8767,168.11,168.01,3.00790786]
[1641347055738,23.8767,168.11,168.02,1.44850786]
[1641347055937,1.67978352,168.12,168.02,10.46850786]
[1641347056137,1.67978352,168.12,168.02,10.72850786]
[1641347056337,1.67978352,168.12,168.03,1.44850786]
[1641347056538,1.67978352,168.12,168.04,8.52]
[1641347056737,1.67978352,168.12,168.04,9.7918]
[1641347056937,5.8606314,168.16,168.05,32.71631111]
[1641347057136,5.8606314,168.16,168.05,55.28901111]
[1641347057338,6.3606314,168.16,168.05,56.04901111]
[1641347058137,4.68084788,168.16,168.05,56.04901111]
[1641347058337,4.68084788,168.16,168.06,1.3487]
[1641347058540,4.68084788,168.16,168.06,1.6087]
[1641347058739,4.94084788,168.16,168.06,2.1087]
[1641347059738,4.44084788,168.16,168.06,2.1087]
[1641347059939,4.94084788,168.16,168.06,2.1087]
[1641347062742,4.44084788,168.16,168.06,2.1087]
[1641347063541,4.94084788,168.16,168.06,2.1087]
[1641347065944,4.68084788,168.16,168.06,9.76420786]
[1641347066143,4.18084788,168.16,168.06,9.76420786]
[1641347069145,4.18084788,168.16,168.06,3.55720786]
[1641347071046,4.44084788,168.16,168.06,3.55720786]
[1641347076352,4.44084788,168.16,168.06,2.1087]
[1641347076754,4.44084788,168.16,168.06,3.55720786]
[1641347076952,4.44084788,168.16,168.06,2.1087]
[1641347077155,4.44084788,168.16,168.06,3.55720786]
[1641347077352,4.94084788,168.16,168.06,3.55720786]
[1641347077553,4.44084788,168.16,168.06,3.55720786]
[1641347078157,4.44084788,168.16,168.07,22.9696]
[1641347078359,4.44084788,168.16,168.07,23.4696]
[1641347078556,4.44084788,168.16,168.07,23.7296]
[1641347079258,4.18084788,168.16,168.07,23.7296]
[1641347079658,4.68084788,168.16,168.07,23.7296]
[1641347079959,4.18084788,168.16,168.07,23.7296]
[1641347080159,4.68084788,168.16,168.07,23.7296]
[1641347080758,4.18084788,168.16,168.07,23.7296]
[1641347080960,4.68084788,168.16,168.07,23.7296]
[1641347081160,4.18084788,168.16,168.07,23.7296]
[1641347081358,4.68084788,168.16,168.07,23.7296]
[1641347081559,4.18084788,168.16,168.07,23.7296]
[1641347081860,4.44084788,168.16,168.07,23.7296]
[1641347082459,4.18084788,168.16,168.07,23.7296]
[1641347082961,4.18084788,168.16,168.07,25.17810786]
[1641347084488,4.18084788,168.16,168.07,23.7296]
[1641347086593,1.67978352,168.19,168.07,23.7296]
[1641347086793,1.2613,168.18,168.07,31.02610786]
[1641347087492,23.9647,168.18,168.08,1.3148]
[1641347087692,2.47510566,168.17,168.08,1.3148]
[1641347087894,2.47510566,168.17,168.08,2.0748]
[1641347088694,1.3713,168.16,168.08,2.0748]
[1641347090394,8.52,168.19,168.08,3.52330786]
[1641347090594,8.52,168.19,168.09,24.0076]
[1641347091001,8.52,168.19,168.09,24.7676]
[1641347091198,2.46233836,168.18,168.09,24.7676]
[1641347091997,1.2878,168.17,168.09,24.7676]
[1641347095099,2.0478,168.17,168.09,24.7676]
[1641347095298,1.2878,168.17,168.09,24.7676]
[1641347095499,1.5478,168.17,168.09,24.7676]
[1641347096207,10.5678,168.17,168.05,1.44850786]
[1641347096403,10.5678,168.17,168.03,1.44850786]
[1641347096601,10.5678,168.17,168.02,25.9024]
[1641347096802,35.3995,168.17,168.02,25.9024]
[1641347097205,35.3995,168.17,168.03,25.09892574]
[1641347097502,35.3995,168.17,168.03,25.35892574]
[1641347097503,37.07928352,168.17,168.03,25.35892574]
[1641347098705,1.67978352,168.16,168.03,25.35892574]
[1641347098902,8.52,168.15,168.03,25.35892574]
[1641347099104,8.78,168.15,168.03,25.35892574]
[1641347099303,9.28,168.15,168.03,25.35892574]
[1641347099805,1.3357,168.14,168.03,25.35892574]
[1641347100004,1.5957,168.14,168.03,25.35892574]
[1641347100204,24.6369,168.14,168.03,25.35892574]
[1641347109216,33.1569,168.14,168.03,25.35892574]
[1641347113046,9.8557,168.14,168.04,1.44850786]
[1641347113248,1.67978352,168.15,168.04,25.88380786]
[1641347113447,1.67978352,168.15,168.05,1.3399]
[1641347113647,1.67978352,168.15,168.05,9.04340786]
[1641347113851,1.67978352,168.15,168.05,9.80340786]
[1641347114146,28.51952188,168.18,168.06,25.40750786]
[1641347114346,29.01952188,168.18,168.06,25.90750786]
[1641347114550,29.01952188,168.18,168.07,1.44850786]
[1641347114948,27.33973836,168.18,168.07,2.20850786]
[1641347115549,28.60023836,168.18,168.08,1.2521]
[1641347115949,28.60023836,168.18,168.08,2.0121]
[1641347125263,28.60023836,168.18,168.08,1.7521]
[1641347125463,28.60023836,168.18,168.08,1.2521]
[1641347125662,28.86023836,168.18,168.08,1.2521]
[1641347126864,28.86023836,168.18,168.08,1.5121]
[1641347129696,28.86023836,168.18,168.08,1.2521]
[1641347130995,28.86023836,168.18,168.08,1.5121]
[1641347134501,45.63414695,168.18,168.08,1.5121]
[1641347134900,8.52,168.17,168.06,23.959]
[1641347135101,8.78,168.17,168.06,24.219]
[1641347135300,9.28,168.17,168.06,24.219]
[1641347135801,1.3104,168.16,168.05,76.2035]
[1641347136001,8.52,168.15,168.05,76.2035]
[1641347136400,9.28,168.15,168.05,76.2035]
[1641347136810,23.7655,168.14,168.04,1.3213]
[1641347137104,3.02529937,168.12,168.04,1.3213]
[1641347137305,3.02529937,168.12,168.04,1.5813]
[1641347137503,3.52529937,168.12,168.04,1.5813]
[1641347137905,3.78529937,168.12,168.04,1.5813]
[1641347139209,0.5,168.12,168.04,1.5813]
[1641347139410,8.52,168.14,168.04,3.02980786]
[1641347139609,1.67978352,168.15,168.04,10.74780786]
[1641347139814,1.67978352,168.15,168.04,34.45370786]
[1641347140011,8.52,168.19,168.04,34.45370786]
[1641347140215,2.50590261,168.17,168.04,34.45370786]
[1641347140613,2.50590261,168.17,168.04,33.0052]
[1641347140814,3.00590261,168.17,168.04,33.0052]
[1641347141014,27.63230261,168.17,168.04,33.0052]
[1641347141214,27.63230261,168.17,168.04,25.7872]
[1641347141614,1.3735,168.16,168.04,25.7872]
[1641347142013,1.8735,168.16,168.04,25.7872]
[1641347143219,1.3735,168.16,168.04,25.7872]
[1641347145016,1.6335,168.16,168.04,25.7872]
[1641347145221,1.1335,168.16,168.04,25.7872]
[1641347145421,1.6335,168.16,168.04,25.7872]
[1641347147850,1.6335,168.16,168.04,25.2872]
[1641347148619,18.24045342,168.15,168.04,25.0272]
[1641347148822,26.76045342,168.15,168.04,25.0272]
[1641347149020,9.28,168.15,168.04,25.0272]
[1641347150225,9.28,168.15,168.04,25.2872]
[1641347150925,1.3266,168.14,168.04,25.2872]
[1641347151124,1.5866,168.14,168.04,25.2872]
[1641347151326,2.0866,168.14,168.04,25.2872]
[1641347151524,26.4095,168.14,168.04,25.2872]
[1641347151925,26.1495,168.14,168.04,25.2872]
[1641347152932,26.1495,168.14,168.04,25.7872]
[1641347153230,26.1495,168.14,168.04,25.2872]
[1641347155559,25.6495,168.14,168.04,25.2872]
[1641347155758,25.6495,168.14,168.04,25.5272]
[1641347155959,25.9095,168.14,168.04,25.0272]
[1641347156961,26.4095,168.14,168.04,25.0272]
[1641347157461,26.4095,168.14,168.04,25.2872]
[1641347168478,26.4095,168.14,168.04,25.7872]
[1641347169879,26.4095,168.14,168.04,25.0272]
[1641347170679,8.52,168.13,168.04,25.0272]
[1641347170879,9.02,168.13,168.04,25.0272]
[1641347171181,9.28,168.13,168.04,25.0272]
[1641347176882,2.3362041,168.11,168.04,25.0272]
[1641347177084,2.5962041,168.11,168.04,25.0272]
[1641347177283,3.0962041,168.11,168.04,25.0272]
[1641347178284,19.23349736,168.11,168.04,25.0272]
[1641347180987,18.73349736,168.11,168.04,25.0272]
[1641347184812,27.25349736,168.11,168.04,25.0272]
[1641347186113,27.25349736,168.11,168.04,23.7059]
[1641347186314,27.25349736,168.11,168.01,76.4361]
[1641347186514,24.0232,168.1,168.02,24.0021]
[1641347186714,24.0232,168.1,167.99,23.4039]
[1641347186715,8.52,168.09,167.99,23.4039]
[1641347186915,2.16814425,168.08,167.98,1.2979]
[1641347187120,2.16814425,168.08,167.93,1.3548]
[1641347187121,31.37785046,167.94,167.93,1.3548]
[1641347187317,31.37785046,167.94,167.89,23.5145]
[1641347187518,31.37785046,167.94,167.87,449.41303837]
[1641347187720,3.04191488,167.93,167.87,474.93439765]
[1641347188116,3.04191488,167.93,167.87,450.68089765]
[1641347188716,3.04191488,167.93,167.87,25.52135928]
[1641347188917,3.04191488,167.93,167.87,25.78135928]
[1641347189118,3.04191488,167.93,167.87,25.52135928]
[1641347189318,31.37785046,167.94,167.87,25.52135928]
[1641347191922,31.37785046,167.94,167.87,25.78135928]
[1641347195028,31.37785046,167.94,167.87,25.52135928]
[1641347195429,31.37785046,167.94,167.83,35.6881]
[1641347195629,31.37785046,167.94,167.83,36.1881]
[1641347196330,31.37785046,167.94,167.84,27.54582849]
[1641347196531,31.37785046,167.94,167.84,27.80582849]
[1641347196731,31.37785046,167.94,167.84,28.30582849]
[1641347197131,31.37785046,167.94,167.84,27.54582849]
[1641347197732,2.22361351,167.93,167.84,27.54582849]
[1641347200766,2.22361351,167.93,167.84,27.80582849]
[1641347201167,31.87785046,167.94,167.84,27.80582849]
[1641347201365,31.37785046,167.94,167.84,28.30582849]
[1641347203770,31.37785046,167.94,167.84,27.54582849]
[1641347203971,32.13785046,167.94,167.84,27.54582849]
[1641347204375,31.87785046,167.94,167.84,27.54582849]
[1641347205174,31.87785046,167.94,167.84,28.30582849]
[1641347211181,31.87785046,167.94,167.84,29.75433635]
[1641347211378,31.87785046,167.94,167.84,28.30582849]
[1641347211607,31.87785046,167.94,167.84,29.75433635]
[1641347211779,31.87785046,167.94,167.85,1.3039]
[1641347211982,31.87785046,167.94,167.85,2.0639]
[1641347214184,31.87785046,167.94,167.85,25.4818]
[1641347220217,31.87785046,167.94,167.85,25.2218]
[1641347220518,32.13785046,167.94,167.85,25.2218]
[1641347220717,33.44625046,167.94,167.85,25.2218]